Cogmind - Beta 11 @@@ ROGUE MODE // 2022.04.08 @ 21:43:01 Player: art-hropod Result: Destroyed by Y-54 Guardian with Flak Gun Performance ------------- Evolutions (3) 1500 Regions Visited (8) 1600 Robots Destroyed (56) 280 Value Destroyed (1361) 1361 Prototype IDs (0) 0 Alien Tech Used (0) 0 Bonus (300) 300 TOTAL SCORE: 5041 Bonus ------- Aligned with FarCom 300 Cogmind --------- Core Integrity 0/700 Matter 160/300 Energy 3/100 System Corruption 0% Temperature Cool (6) Movement Core (50) Location -7/Storage Parts ------- > --- POWER (2) -------- (None) > --- PROPULSION (4) --- (None) > --- UTILITY (4) ------ Coolant Injector Transmission Jammer > --- WEAPON (3) ------- (None) > --- INVENTORY (5) ---- Improved Heat Sink Improved Sensor Array Improved Salvage Targeting Computer Heavy Missile Launcher Peak State ------------ > --- POWER ------------ Light Ion Engine > --- PROPULSION ------- Titanium Leg VSS Leg VSS Leg Improved Titanium Leg > --- UTILITY ---------- Coolant Injector Coolant Injector Transmission Jammer System Restoration Module > --- WEAPON ----------- Autogun Mini Grenade Launcher Heavy Missile Launcher > --- INVENTORY -------- Improved Salvage Targeting Computer Heavy Missile Launcher Heavy Missile Launcher [Rating: 39] Favorites ----------- Power Ion Engine Engine Ion Engine Propulsion Improved Aluminum Leg Leg Improved Aluminum Leg Wheel Wheel Utility Small Storage Unit Device Coolant Injector Storage Small Storage Unit Protection Improved Medium Armor Plating Weapon Mini Grenade Launcher Energy Gun Spread Laser Energy Cannon Heavy Particle Cannon Ballistic Gun Autogun Ballistic Cannon Assault Cannon Launcher Mini Grenade Launcher Build | -11 -10 -9 -9 -9 -8 -8 -7 -7 ------- Run | Scr Mat Mat Min Exi Min Mat Fac Sto Slots Evolved 6 | . . 2 . . . 2 2 . Power 1 | . . . . . . . 1 . Propulsion 2 | . . 2 . . . . . . Utility 2 | . . . . . . 2 . . Weapon 1 | . . . . . . . 1 . Parts Attached 53 | 7 5 4 . . . 16 17 4 Power 7 | 1 . . . . . 2 3 1 Engine 7 | 1 . . . . . 2 3 1 Core . | . . . . . . . . . Reactor . | . . . . . . . . . Propulsion 16 | 2 . 4 . . . 3 6 1 Treads . | . . . . . . . . . Leg 14 | 2 . 4 . . . 1 6 1 Wheel 2 | . . . . . . 2 . . Hover . | . . . . . . . . . Flight . | . . . . . . . . . Utility 12 | 2 . . . . . 5 4 1 Device 7 | 1 . . . . . 2 3 1 Storage 3 | 1 . . . . . 1 1 . Processor . | . . . . . . . . . Hackware . | . . . . . . . . . Protection 2 | . . . . . . 2 . . Artifact . | . . . . . . . . . Weapon 18 | 2 5 . . . . 6 4 1 Energy Gun 3 | . 3 . . . . . . . Energy Cannon 1 | . . . . . . 1 . . Ballistic Gun 4 | 2 . . . . . 1 1 . Ballistic Cannon 4 | . . . . . . 3 1 . Launcher 6 | . 2 . . . . 1 2 1 Special Weapon . | . . . . . . . . . Impact Weapon . | . . . . . . . . . Slashing Weapon . | . . . . . . . . . Piercing Weapon . | . . . . . . . . . Special Melee Weapon . | . . . . . . . . . Unidentified Prototypes . | . . . . . . . . . Parts Lost 37 | . . . . . . 18 5 14 Power 6 | . . . . . . 2 2 2 Propulsion 13 | . . . . . . 7 1 5 Utility 9 | . . . . . . 6 . 3 Weapon 9 | . . . . . . 3 2 4 Highest Loss Streak 7 | . . . . . . 7 4 6 To Critical Strikes . | . . . . . . . . . Average Slot Usage (%) 78 | . 100 89 100 100 100 76 47 61 Engine 8 | . 14 11 11 11 11 7 4 2 Leg 28 | . 28 33 44 44 44 23 18 20 Device 13 | . 14 11 11 11 11 13 12 20 Storage 7 | . 14 11 11 11 11 9 . . Protection 1 | . . . . . . 4 . . Energy Gun 5 | . 20 11 11 11 11 . . . Ballistic Cannon 2 | . . . . . . 7 3 . Launcher 7 | . 6 11 11 11 11 4 3 14 Naked Turns . | . . . . . . . . . Heaviest Build 30 | 14 17 15 15 15 15 30 19 21 Greatest Support 77 | 20 20 49 49 49 49 49 77 37 Greatest Overweight (x) 6 | . . . . . . 6 1 4 Average Overweight (x) . | . . . . . . . . . Largest Inventory Capacity 8 | 8 8 8 8 8 8 8 5 5 Average Capacity 7 | 7 8 8 8 8 8 7 5 5 Most Carried 8 | 3 8 8 8 8 8 8 5 4 Average Carried 6 | 1 7 8 8 8 8 7 3 2 Final Capacity 8 | 8 8 8 8 8 8 5 5 5 Final Carried 8 | 2 8 8 8 8 8 4 3 4 Class Distribution -------------------- 89% | Mutant 9% | Skirmisher Dominant Class ---------------- Mutant | -10/Materials Mutant | -9/Materials Mutant | -9/Mines Mutant | -9/Exiles Skirmisher | -8/Mines Mutant | -8/Materials Mutant | -7/Factory Mutant | -7/Storage Resources | -11 -10 -9 -9 -9 -8 -8 -7 -7 ----------- Run | Scr Mat Mat Min Exi Min Mat Fac Sto Matter Collected 1182 | 219 65 42 32 . . 124 393 307 Remotely . | . . . . . . . . . Salvage Created 1258 | 30 65 67 39 . . 506 268 283 Parts 105 | 3 . 5 10 . . 39 24 24 Haulers Intercepted . | . . . . . . . . . Recyclers Shooed . | . . . . . . . . . Parts Field Recycled . | . . . . . . . . . Retrieved Matter . | . . . . . . . . . Parts Self-Destructed . | . . . . . . . . . Prevented . | . . . . . . . . . Kills | -11 -10 -9 -9 -9 -8 -8 -7 -7 ------- Run | Scr Mat Mat Min Exi Min Mat Fac Sto Combat Hostiles Destroyed 29 | . 2 2 3 . . 12 4 6 Guns 6 | . 2 2 . . . . . 2 Cannons 8 | . . . . . . 8 . . AOE 15 | . . . 3 . . 4 4 4 Classes Destroyed 9 | 1 1 2 1 . . 3 1 . Worker 8 | . . . . . . 2 3 3 Builder 10 | . . . . . . 3 5 2 Tunneler 2 | 1 . . 1 . . . . . Recycler 3 | . . . . . . 1 1 1 Watcher 4 | . . 1 . . . 1 1 1 Swarmer 9 | . . . 3 . . 3 3 . Grunt 11 | . 2 . . . . 6 . 3 Sentry 8 | . . 2 . . . 3 . 3 Hunter 1 | . . . . . . . 1 . Best Kill Streak 11 | 1 2 1 3 . . 11 7 6 Combat Bots Only 9 | . 2 1 3 . . 9 4 3 Max Kills in Single Turn 4 | 1 1 1 2 . . 2 4 3 Gunslinging . | . . . . . . . . . Exploded 4 | . . . 2 . . 1 4 1 Melee . | . . . . . . . . . Uniques/NPCs Destroyed . | . . . . . . . . . Combat | -11 -10 -9 -9 -9 -8 -8 -7 -7 -------- Run | Scr Mat Mat Min Exi Min Mat Fac Sto Damage Taken 4814 | . 87 323 16 . . 2120 1218 1050 Core 1285 | . . 59 . . . 526 369 331 Absorbed by Shields . | . . . . . . . . . Core Remaining (%) 72 | 100 100 . . . 85 4 . . Volleys Fired 99 | 1 6 9 4 . 1 29 21 28 Largest 3 | 2 2 2 2 . 1 2 2 3 Hottest 130 | 40 130 95 95 . 65 119 62 92 Shots Fired 160 | 2 12 18 6 . 1 54 29 38 Gun 54 | 2 12 9 4 . 1 . 11 15 Cannon 50 | . . . . . . 41 9 . Launcher 56 | . . 9 2 . . 13 9 23 Special . | . . . . . . . . . Kinetic 57 | 2 . . . . . 20 20 15 Thermal 47 | . 12 9 4 . 1 21 . . Explosive 56 | . . 9 2 . . 13 9 23 Electromagnetic . | . . . . . . . . . Robot Hit Streak 7 | 1 6 3 4 . 6 5 4 7 Robot Miss Streak 9 | 1 7 3 9 . 4 3 3 2 Penetration Max . | . . . . . . . . . Secondary Targets 1 | . 1 . . . . . . . Max Gunslinging Chain 1 | . 1 . . . . . . . Shots Hit Robots 86 | 1 11 8 1 . 1 27 13 24 Core Hits 122 | 1 16 11 6 . 1 33 18 36 Critical Kills . | . . . . . . . . . Critical Parts Destroyed . | . . . . . . . . . Critical Strikes . | . . . . . . . . . Melee Attacks . | . . . . . . . . . Impact . | . . . . . . . . . Slashing . | . . . . . . . . . Piercing . | . . . . . . . . . Sneak Attacks . | . . . . . . . . . Combat Hostiles . | . . . . . . . . . Follow-up Attacks . | . . . . . . . . . Damage Inflicted 3753 | 14 181 235 219 . 8 1253 757 1086 Guns 509 | 14 181 79 18 . 8 . 39 170 Cannons 660 | . . . . . . 544 116 . Explosions 2528 | . . 156 201 . . 709 566 896 Melee . | . . . . . . . . . Ramming 56 | . . . . . . . 36 20 Kinetic 583 | 14 . . . . . 244 155 170 Thermal 586 | . 181 79 18 . 8 300 . . Explosive 2528 | . . 156 201 . . 709 566 896 Electromagnetic . | . . . . . . . . . Impact . | . . . . . . . . . Slashing . | . . . . . . . . . Piercing . | . . . . . . . . . Highest Corruption . | . . . . . . . . . Average Corruption . | . . . . . . . . . Corruption Purged . | . . . . . . . . . Corruption Blocked . | . . . . . . . . . Overload Shots . | . . . . . . . . . Overflow Damage 59 | . . 7 . . . 48 4 . Projectiles 33 | . . . . . . 33 . . Explosions 26 | . . 7 . . . 15 4 . Melee . | . . . . . . . . . Knockbacks 4 | . . . . . . 2 2 . Impact . | . . . . . . . . . Kinetic 4 | . . . . . . 2 2 . Secondary . | . . . . . . . . . Self-Inflicted Damage 218 | . . . . . . 99 44 75 Shots 8 | . . . . . . 3 1 4 Rammed 8 | . . . . . . . 8 . Targets Rammed 19 | . . . . . . . 12 7 Kicked 11 | . . . . . . . 4 7 Crushed . | . . . . . . . . . Highest Temperature 396 | . 396 72 48 . 18 193 2 12 Average Temperature 80 | . 182 29 24 . 13 76 2 5 Received Heat Transfer 1419 | . 51 108 . . . 972 24 264 Effects 1 | . 1 . . . . . . . Energy Bleed 1 | . 1 . . . . . . . Siege Activations . | . . . . . . . . . Robots Corrupted . | . . . . . . . . . Combat Hostiles . | . . . . . . . . . Parts Fried . | . . . . . . . . . Impact Corruptions . | . . . . . . . . . Robots Melted . | . . . . . . . . . Combat Hostiles . | . . . . . . . . . Parts Melted . | . . . . . . . . . Heat Transferred 799 | . 225 95 25 . 10 444 . . Parts Sabotaged . | . . . . . . . . . Parts Stolen . | . . . . . . . . . Parts Stripped . | . . . . . . . . . Power Chain Reactions . | . . . . . . . . . Missiles Intercepted . | . . . . . . . . . Alert | -11 -10 -9 -9 -9 -8 -8 -7 -7 ------- Run | Scr Mat Mat Min Exi Min Mat Fac Sto Peak Influence 392 | 5 82 266 217 . . 281 190 392 Initial 112 | . 3 34 103 . . . 112 52 Average 124 | 1 39 92 183 . . 122 104 247 Maximum Alert Level 1 | . . 1 1 . . 1 . 1 Low Security (%) 69 | 100 100 87 27 . 100 61 100 36 Level 1 30 | . . 12 72 . . 38 . 63 Level 2 . | . . . . . . . . . Level 3 . | . . . . . . . . . Level 4 . | . . . . . . . . . Level 5 . | . . . . . . . . . High Security . | . . . . . . . . . Max Security . | . . . . . . . . . Squads Dispatched 3 | . . 1 . . . 1 . 1 Investigation . | . . . . . . . . . Extermination . | . . . . . . . . . Reinforcement 3 | . . 1 . . . 1 . 1 Assault . | . . . . . . . . . Garrison . | . . . . . . . . . Intercept . | . . . . . . . . . Searches Triggered . | . . . . . . . . . Construction Impeded 1 | . . . . . . . . 1 Haulers Reinforced . | . . . . . . . . . Active Scanning Responses . | . . . . . . . . . Cargo Convoy Interrupts . | . . . . . . . . . Stealth | -11 -10 -9 -9 -9 -8 -8 -7 -7 --------- Run | Scr Mat Mat Min Exi Min Mat Fac Sto Distress Signals 5 | . 1 1 . . . 1 1 1 Communications Jammed 1 | . . . . . . . . 1 Distress Signals 1 | . . . . . . . . 1 Times Spotted 62 | . 3 8 3 . . 30 8 10 Peak Tracking Total 11 | . 3 4 3 . . 11 5 3 Tactical Retreats 3 | . . . . . . 2 . 1 Traps | -11 -10 -9 -9 -9 -8 -8 -7 -7 ------- Run | Scr Mat Mat Min Exi Min Mat Fac Sto Traps Triggered . | . . . . . . . . . Indirectly . | . . . . . . . . . Trap Hack Attempts . | . . . . . . . . . Triggered . | . . . . . . . . . Disarmed . | . . . . . . . . . Reprogrammed . | . . . . . . . . . Reused . | . . . . . . . . . Traps Extracted . | . . . . . . . . . Installed . | . . . . . . . . . Triggered . | . . . . . . . . . Machines | -11 -10 -9 -9 -9 -8 -8 -7 -7 ---------- Run | Scr Mat Mat Min Exi Min Mat Fac Sto Machines Disabled 9 | . . . . . . 4 3 2 Max in Single Turn 2 | . . . . . . 1 2 1 Machines Sabotaged . | . . . . . . . . . Garrisons Compromised . | . . . . . . . . . Overloaded Fab Kills . | . . . . . . . . . Hacking | -11 -10 -9 -9 -9 -8 -8 -7 -7 --------- Run | Scr Mat Mat Min Exi Min Mat Fac Sto Machines Accessed 4 | . 1 . . 3 . . . . Terminals 1 | . 1 . . . . . . . Fabricators . | . . . . . . . . . Repair Stations . | . . . . . . . . . Recycling Units . | . . . . . . . . . Scanalyzers . | . . . . . . . . . Garrison Access . | . . . . . . . . . Total Hacks 29 | . 3 . . 26 . . . . Successful 27 | . 1 . . 26 . . . . Failed 2 | . 2 . . . . . . . Catastrophic 1 | . 1 . . . . . . . Database Lockouts . | . . . . . . . . . Manual . | . . . . . . . . . Terminals 3 | . 3 . . . . . . . Fabricators . | . . . . . . . . . Repair Stations . | . . . . . . . . . Recycling Units . | . . . . . . . . . Scanalyzers . | . . . . . . . . . Garrison Access . | . . . . . . . . . Terminal Hacks 27 | . 1 . . 26 . . . . Record 26 | . . . . 26 . . . . Zone Layout 1 | . 1 . . . . . . . Fabricator Hacks . | . . . . . . . . . Repair Station Hacks . | . . . . . . . . . Recycling Unit Hacks . | . . . . . . . . . Scanalyzer . | . . . . . . . . . Garrison Access Hacks . | . . . . . . . . . Unauthorized Hacks . | . . . . . . . . . Terminals . | . . . . . . . . . Fabricators . | . . . . . . . . . Repair Stations . | . . . . . . . . . Recycling Units . | . . . . . . . . . Scanalyzers . | . . . . . . . . . Garrison Access . | . . . . . . . . . Data Cores Recovered . | . . . . . . . . . Used . | . . . . . . . . . Hacking Detections 1 | . 1 . . . . . . . Full Trace Events 1 | . 1 . . . . . . . Feedback Events . | . . . . . . . . . Feedback Blocked . | . . . . . . . . . Robot Schematics Acquired . | . . . . . . . . . Robots Built . | . . . . . . . . . Authchips . | . . . . . . . . . Time . | . . . . . . . . . Total Robot Build Rating . | . . . . . . . . . Part Schematics Acquired . | . . . . . . . . . Parts Built . | . . . . . . . . . Authchips . | . . . . . . . . . Time . | . . . . . . . . . Total Part Build Rating . | . . . . . . . . . Parts Repaired . | . . . . . . . . . Time . | . . . . . . . . . Parts Recycled . | . . . . . . . . . Recycled Matter . | . . . . . . . . . Retrieved Matter . | . . . . . . . . . Retrieved Components . | . . . . . . . . . Parts Scanalyzed . | . . . . . . . . . Part Schematics Acquired . | . . . . . . . . . Parts Damaged . | . . . . . . . . . Bothacking | -11 -10 -9 -9 -9 -8 -8 -7 -7 ------------ Run | Scr Mat Mat Min Exi Min Mat Fac Sto Used RIF Installer . | . . . . . . . . . Robots Hacked . | . . . . . . . . . Non-combat . | . . . . . . . . . Combat . | . . . . . . . . . Robot Hacks Applied . | . . . . . . . . . Relay Couplers Released . | . . . . . . . . . Fabnet Peak Effective % . | . . . . . . . . . Robots Rewired . | . . . . . . . . . Allies Hacked . | . . . . . . . . . Hacks Repelled . | . . . . . . . . . Allies | -11 -10 -9 -9 -9 -8 -8 -7 -7 -------- Run | Scr Mat Mat Min Exi Min Mat Fac Sto Total Allies . | . . . . . . . . . Largest Group . | . . . . . . . . . Highest-Rated Group . | . . . . . . . . . Highest-Rated Ally . | . . . . . . . . . Total Orders . | . . . . . . . . . Ally Attacks . | . . . . . . . . . Total Damage . | . . . . . . . . . Kills . | . . . . . . . . . Allies Corrupted . | . . . . . . . . . Allies Melted . | . . . . . . . . . Intel | -11 -10 -9 -9 -9 -8 -8 -7 -7 ------- Run | Scr Mat Mat Min Exi Min Mat Fac Sto Robot Analysis Total . | . . . . . . . . . Derelict Logs Recovered 1 | . . . 1 . . . . . Drone Launches . | . . . . . . . . . Drone Recoveries . | . . . . . . . . . Exploration | -11 -10 -9 -9 -9 -8 -8 -7 -7 ------------- Run | Scr Mat Mat Min Exi Min Mat Fac Sto Turns Passed 2845 | 76 250 122 373 350 58 742 599 275 Spaces Moved 1937 | 52 177 75 303 292 47 412 462 117 Core 372 | 6 . . . . . 91 254 21 Treads . | . . . . . . . . . Legs 1565 | 46 177 75 303 292 47 321 208 96 Wheels . | . . . . . . . . . Hover . | . . . . . . . . . Flight . | . . . . . . . . . Fastest Speed 50 | 50 120 120 120 120 120 100 50 50 Average Speed 119 | 111 120 120 120 120 120 137 100 122 Slowest Speed 350 | 120 120 120 120 120 120 350 130 250 Overloaded Moves . | . . . . . . . . . Propulsion Burnouts . | . . . . . . . . . Robots Hopped . | . . . . . . . . . Cave-ins Triggered . | . . . . . . . . . Exploration Rate (%) 34 | 4 41 20 80 61 14 42 12 34 Regions Visited 8 Branch Regions 4 Pre-discovered Areas . | . . . . . . . . . Known Exits Taken 1 | . . . . . . 1 . . Unknown Exits Taken 7 | 1 1 1 1 1 1 . 1 . Scrap Searched . | . . . . . . . . . Spaces Dug . | . . . . . . . . . Terrain Destroyed 418 | . . 73 17 . . 99 34 195 Melee . | . . . . . . . . . Projectile 12 | . . . . . . 11 1 . AOE 406 | . . 73 17 . . 88 33 195 Terrain Rammed . | . . . . . . . . . Walls Destroyed . | . . . . . . . . . Machines Disabled . | . . . . . . . . . Actions | -11 -10 -9 -9 -9 -8 -8 -7 -7 --------- Run | Scr Mat Mat Min Exi Min Mat Fac Sto Total 2318 | 68 201 89 306 291 47 535 567 214 Wait 153 | . 4 . . . . 55 41 53 Move 1929 | 51 176 74 302 291 46 411 461 117 Hop . | . . . . . . . . . Pick Up 49 | 9 8 . . . . 14 13 5 Fast Attach 8 | . . 2 . . . 3 3 . Attach 35 | 7 . . . . . 10 14 4 Detach . | . . . . . . . . . Swap 10 | . 5 2 . . . 3 . . Drop 16 | . 2 2 . . . 10 2 . Fire 99 | 1 6 9 4 . 1 29 21 28 Melee . | . . . . . . . . . Ram 8 | . . . . . . . 8 . Kick 11 | . . . . . . . 4 7 Crush . | . . . . . . . . . Escape Stasis . | . . . . . . . . . Rewire . | . . . . . . . . . Trap . | . . . . . . . . . Miscellaneous . | . . . . . . . . . Route ------- -11/Scrapyard -10/Materials -9/Materials -9/Mines (discovered 3 exits: *Mat x2 / *Exi) -9/Exiles -8/Mines -8/Materials -7/Factory -7/Storage History --------- Turn | Location | Event 3 | -11/Scrapyard | Discovered new exit (range 15) 77 | -11/Scrapyard | Entered Materials 310 | -10/Materials | Build established: Mutant 316 | -10/Materials | Discovered new exit (range 6) 327 | -10/Materials | Entered another Materials area 327 | -9/Materials | Evolved 2 slots: Propulsion x2 433 | -9/Materials | Discovered new exit (range 9) 449 | -9/Materials | Entered Mines 512 | -9/Mines | Discovered new exit (range 3) 623 | -9/Mines | Learned 4 Materials zone layouts 777 | -9/Mines | Discovered new exit (range 8) 817 | -9/Mines | Deemed a non-threat by the Exiles lab entrance 817 | -9/Mines | Discovered new exit (range 5) 822 | -9/Mines | Entered Exiles 852 | -9/Exiles | Met 8R-AWN 873 | -9/Exiles | Met EX-HEX 922 | -9/Exiles | Met EX-BIN 1055 | -9/Exiles | Aligned with FarCom system 1056 | -9/Exiles | Given EX-Vault access code 1110 | -9/Exiles | Met EX-DEC 1162 | -9/Exiles | Discovered new exit (range 10) 1172 | -9/Exiles | Entered Mines 1205 | -8/Mines | Discovered new exit (range 16) 1230 | -8/Mines | Entered Materials 1230 | -8/Materials | Evolved 2 slots: Utility x2 1231 | -8/Materials | Identified exit to Factory 1707 | -8/Materials | Destroyed 9 combat bots 1740 | -8/Materials | Lost 7 parts (4n2u1w) 1920 | -8/Materials | Lost 7 parts (1p2n2u2w) 1950 | -8/Materials | Core integrity fell below 50% 1962 | -8/Materials | Core integrity fell below 20% 1972 | -8/Materials | Entered Factory 1972 | -7/Factory | Evolved 2 slots: Power x1, Weapon x1 2366 | -7/Factory | Core integrity fell below 50% 2398 | -7/Factory | Lost 4 parts (2p1n1w) 2528 | -7/Factory | Discovered new exit (range 9) 2571 | -7/Factory | Entered Storage 2646 | -7/Storage | Lost 5 parts (1p2n2u) 2838 | -7/Storage | Core integrity fell below 20% 2846 | -7/Storage | Destroyed by Y-54 Guardian with Flak Gun Last Messages --------------- 02762_ The unstable cave ceiling collapses. 02764_ K-01 Serf collects debris. 02764_ Acquired 2 matter. 02768_ The unstable cave ceiling collapses. 02768_ K-01 Serf collects debris. 02771_ The unstable cave ceiling collapses. 02771_ K-01 Serf collects debris. 02777_ The unstable cave ceiling collapses. 02796_ K-01 Serf collects debris. 02800_ The unstable cave ceiling collapses. 02800_ K-01 Serf collects debris. 02830_ Hvy. Missile Launcher destroyed. 02833_ VSS Leg destroyed. 02835_ Acquired 75 matter. 02836_ Acquired 63 matter. 02837_ VSS Leg destroyed. 02837_ Imp. Heat Sink destroyed. 02839_ Acquired Imp. Sensor Array. 02840_ Aluminum Leg destroyed. 02843_ Mni. Grenade Launcher destroyed. Map ----- +----------------------------------------------------+ | | | | | | | | | | | | | | | | | | | | | | | | | | | ????#########???????????????????????????? | | ????# #???????????????????????????? | | ????# " """ #???????????????????????????? | | ????# T """ #?????########????????? ??? | | ????# " """ ####### ######??? ?? | | ?????? ?+ / ? | | ??????##+##?####+## g ## ###? a ? | | # ### ### # # | | # / # | | ####### ### ###??????? | | ??????# ##?# ### # Y #???????? | | ??????# #### #?# ##???????? | | ?????### #### #?# @ #????????? | | ????## ##+##+##### # #????????? | | ????" ?????? | | ????#T ### #?##### ##+ #####????? | | ##?## #?????????### ?? ???????? | | #?# ###???????????? ??? ?????? | | ##### ##????????????? ??? """ #????? | | # ##???????????? ????""" +????? | | # #???????????? ????""??#????? | | """ # # ##???????????Y ?????????????? | | ??" # # ##????????????? ????????????? | | ??" ### ###????????Y????? ????????????? | | "?" + #?????????????????#????????????? | | """ #####??????????????????????????????? | | #??????????????????????????????????? | | #####??????????????????????????????????? | | #??????????????????????????????????????? | | #??????????????????????????????????????? | | #??????????????????????????????????????? | | ##??????????????????????????????????????? | | ????????????????????????????????????????? | | ????????????????????????????????????????? | | ????????????????????????????????????????? | | ????????????????????????????????????????? | | ????????????????????????????????????????? | +----------------------------------------------------+ Best States ------------- Heat Dissipation 48 Coolant Potential 130 Energy Generation 16 Energy Capacity 340 Matter Stores 290 Matter Capacity 400 Sight Range 16 Robot Scan Range 15 Terrain Scan Range 16 Terrain Scan Density 10 Jamming Range 12 Armor Coverage 225 Evasion (%) 55 Item Schematics ----------------- None Robot Schematics ------------------ None Fabricated ------------ Nothing Alien Tech Used ----------------- None Achievements -------------- Close Call Remodeling Challenges ------------ None Game ------ Seed FlakCouplerAccelerator Manual? 0 Play Time 00:50:10 Cumulative 10.5 hours Start 2022.03.18 @ 22:24:32 End 2022.04.08 @ 21:43:01 Sessions 6 Manual Loads 0 Difficulty Rogue Special Mode None Game No. 11 Rogue 11 Adventurer 0 Explorer 0 Win Type - Total 0 Types 0/0/0/0/0/0/0/0/0 Lore% 10 Gallery% 14 Achievement% 11 Wizard Run 0 Options --------- ASCII 0 Keyboard 0 Movement Mouse Keybinds 0 Fullscreen 1 Font 32/SmallcapsGlow Map View 63x52 Tactical HUD 1 Map Filters NONE Filters NONE Steam 1 RUN: bcf47f9a-e386-47ec-a6ce-e6005ef7ad82